[Event "Titled Tuesday Blitz August 15 Early 2023"]
[White "Akylbek2021"]
[Black "Eynullayev, Altay"]
[BlackFideId "13413562"]
[WhiteElo "2360"]
[BlackElo "2558"]
[Result "0-1"]
[Round "8"]
[TimeControl "180+1"]
[Date "2023.08.15"]
[WhiteClock "0:00:28"]
[BlackClock "0:00:12"]
[Board "84"]

1. d4 {[%clk 0:03:00]}  Nf6 {[%clk 0:02:59]} 2. Bf4 {[%clk 0:03:00]}  e6 {[%clk 0:02:58]} 3. Nc3 {[%clk 0:03:00]}  d5 {[%clk 0:02:57]} 4. Nb5 {[%clk 0:03:00]}  Bb4+ {[%clk 0:02:57]} 5. c3 {[%clk 0:03:00]}  Ba5 {[%clk 0:02:57]} 6. a4 {[%clk 0:03:00]}  a6 {[%clk 0:02:49]} 7. b4 {[%clk 0:03:00]}  axb5 {[%clk 0:02:49]} 8. axb5 {[%clk 0:03:01]}  O-O {[%clk 0:01:57]} 9. bxa5 {[%clk 0:02:55]}  Nh5 {[%clk 0:01:55]} 10. Bg3 {[%clk 0:02:48]}  Nxg3 {[%clk 0:01:52]} 11. hxg3 {[%clk 0:02:49]}  c5 {[%clk 0:01:52]} 12. e3 {[%clk 0:02:46]}  Rxa5 {[%clk 0:01:45]} 13. dxc5 {[%clk 0:02:40]}  Rxa1 {[%clk 0:01:38]} 14. Qxa1 {[%clk 0:02:41]}  Nd7 {[%clk 0:01:38]} 15. Qb1 {[%clk 0:02:25]}  f5 {[%clk 0:01:25]} 16. Qb4 {[%clk 0:02:24]}  Qc7 {[%clk 0:01:13]} 17. Nf3 {[%clk 0:02:04]}  Qxc5 {[%clk 0:01:04]} 18. Qxc5 {[%clk 0:01:59]}  Nxc5 {[%clk 0:01:04]} 19. Ne5 {[%clk 0:01:59]}  Nd7 {[%clk 0:01:02]} 20. Nd3 {[%clk 0:01:50]}  e5 {[%clk 0:00:54]} 21. Nb4 {[%clk 0:01:47]}  Nb6 {[%clk 0:00:50]} 22. Kd2 {[%clk 0:01:40]}  Be6 {[%clk 0:00:47]} 23. Be2 {[%clk 0:01:39]}  Ra8 {[%clk 0:00:46]} 24. Kc2 {[%clk 0:01:30]}  h6 {[%clk 0:00:43]} 25. Kb2 {[%clk 0:01:29]}  Na4+ {[%clk 0:00:43]} 26. Kc2 {[%clk 0:01:27]}  Rc8 {[%clk 0:00:43]} 27. c4 {[%clk 0:01:22]}  dxc4 {[%clk 0:00:42]} 28. Rd1 {[%clk 0:01:22]}  Kf7 {[%clk 0:00:38]} 29. Ra1 {[%clk 0:00:59]}  Nc5 {[%clk 0:00:36]} 30. Ra7 {[%clk 0:00:57]}  Kf6 {[%clk 0:00:34]} 31. f3 {[%clk 0:00:55]}  g5 {[%clk 0:00:30]} 32. Na2 {[%clk 0:00:45]}  h5 {[%clk 0:00:25]} 33. Nc3 {[%clk 0:00:45]}  h4 {[%clk 0:00:25]} 34. gxh4 {[%clk 0:00:41]}  gxh4 {[%clk 0:00:25]} 35. Na4 {[%clk 0:00:33]}  Nb3 {[%clk 0:00:22]} 36. Rxb7 {[%clk 0:00:32]}  Rd8 {[%clk 0:00:22]} 37. Kc3 {[%clk 0:00:28]}  Rg8 {[%clk 0:00:14]} 38. Rh7 {[%clk 0:00:24]}  Rxg2 {[%clk 0:00:13]} 39. Bxc4 {[%clk 0:00:24]}  Bxc4 {[%clk 0:00:12]} 40. Kxc4 {[%clk 0:00:25]}  Nd2+ {[%clk 0:00:13]} 41. Kd5 {[%clk 0:00:25]}  Nxf3 {[%clk 0:00:13]} 42. b6 {[%clk 0:00:26]}  Rg8 {[%clk 0:00:02]} 43. b7 {[%clk 0:00:26]}  Kg6 {[%clk 0:00:02]} 44. Rc7 {[%clk 0:00:23]}  h3 {[%clk 0:00:03]} 45. Nb6 {[%clk 0:00:20]}  h2 {[%clk 0:00:03]} 46. Rc1 {[%clk 0:00:20]}  Ng1 {[%clk 0:00:02]} 47. Rc6+ {[%clk 0:00:16]}  Kg5 {[%clk 0:00:02]} 48. Nc8 {[%clk 0:00:16]}  h1=Q+ {[%clk 0:00:02]} 49. Kd6 {[%clk 0:00:17]}  Nh3 {[%clk 0:00:02]} 50. b8=Q {[%clk 0:00:15]}  Rg6+ {[%clk 0:00:02]} 51. Ke7 {[%clk 0:00:14]}  Qxc6 {[%clk 0:00:03]} 52. Nd6 {[%clk 0:00:13]}  Qxd6+ {[%clk 0:00:03]} 53. Qxd6 {[%clk 0:00:14]}  Rxd6 {[%clk 0:00:04]} 54. Kxd6 {[%clk 0:00:15]}  e4 {[%clk 0:00:05]} 55. Ke5 {[%clk 0:00:15]}  Ng1 {[%clk 0:00:05]} 56. Kd4 {[%clk 0:00:16]}  Nf3+ {[%clk 0:00:06]} 57. Kd5 {[%clk 0:00:16]}  Kg4 {[%clk 0:00:07]} 58. Kc4 {[%clk 0:00:17]}  f4 {[%clk 0:00:07]} 59. exf4 {[%clk 0:00:17]}  Kxf4 {[%clk 0:00:08]} 60. Kc3 {[%clk 0:00:18]}  e3 {[%clk 0:00:09]} 61. Kd3 {[%clk 0:00:18]}  Ne5+ {[%clk 0:00:08]} 62. Ke2 {[%clk 0:00:19]}  Ke4 {[%clk 0:00:09]} 63. Ke1 {[%clk 0:00:20]}  Nc6 {[%clk 0:00:09]} 64. Ke2 {[%clk 0:00:21]}  Nd4+ {[%clk 0:00:10]} 65. Ke1 {[%clk 0:00:22]}  Kd3 {[%clk 0:00:10]} 66. Kd1 {[%clk 0:00:22]}  e2+ {[%clk 0:00:11]} 67. Ke1 {[%clk 0:00:23]}  Nc2+ {[%clk 0:00:11]} 68. Kf2 {[%clk 0:00:24]}  e1=Q+ {[%clk 0:00:11]} 69. Kf3 {[%clk 0:00:25]}  Qe4+ {[%clk 0:00:12]} 70. Kg3 {[%clk 0:00:26]}  Ne3 {[%clk 0:00:12]} 71. Kf2 {[%clk 0:00:27]}  Qg2+ {[%clk 0:00:12]} 72. Ke1 {[%clk 0:00:28]}  Qe2# {[%clk 0:00:12]} 0-1


[Site "https://www.chess.com"]

[Event "Titled Tuesday Blitz August 15 Early 2023"]
[White "Weetik, Vjacheslav"]
[Black "EvgenyBurmakin"]
[WhiteFideId "4153472"]
[WhiteElo "2721"]
[BlackElo "2291"]
[Result "0-1"]
[Round "8"]
[TimeControl "180+1"]
[Date "2023.08.15"]
[WhiteClock "0:00:00"]
[BlackClock "0:00:07"]
[Board "87"]

1. e4 {[%clk 0:02:59]}  c5 {[%clk 0:02:59]} 2. Nf3 {[%clk 0:02:59]}  d6 {[%clk 0:02:59]} 3. d4 {[%clk 0:02:57]}  cxd4 {[%clk 0:03:00]} 4. Nxd4 {[%clk 0:02:58]}  Nf6 {[%clk 0:03:00]} 5. Nc3 {[%clk 0:02:59]}  a6 {[%clk 0:03:01]} 6. Be3 {[%clk 0:02:58]}  e6 {[%clk 0:03:01]} 7. g4 {[%clk 0:02:58]}  Be7 {[%clk 0:02:57]} 8. g5 {[%clk 0:02:57]}  Nfd7 {[%clk 0:02:57]} 9. h4 {[%clk 0:02:56]}  Qc7 {[%clk 0:02:53]} 10. f4 {[%clk 0:02:48]}  b5 {[%clk 0:02:49]} 11. a3 {[%clk 0:02:44]}  Bb7 {[%clk 0:02:48]} 12. Bg2 {[%clk 0:02:17]}  Nc6 {[%clk 0:02:25]} 13. O-O {[%clk 0:02:14]}  Na5 {[%clk 0:02:04]} 14. Nce2 {[%clk 0:01:23]}  Nc4 {[%clk 0:01:59]} 15. Bc1 {[%clk 0:01:23]}  Nc5 {[%clk 0:01:57]} 16. Ng3 {[%clk 0:01:23]}  g6 {[%clk 0:01:51]} 17. b3 {[%clk 0:01:22]}  Nb6 {[%clk 0:01:16]} 18. f5 {[%clk 0:01:10]}  e5 {[%clk 0:01:04]} 19. Nde2 {[%clk 0:01:07]}  d5 {[%clk 0:01:02]} 20. f6 {[%clk 0:00:27]}  Bd6 {[%clk 0:00:55]} 21. exd5 {[%clk 0:00:27]}  O-O-O {[%clk 0:00:54]} 22. Be3 {[%clk 0:00:21]}  e4 {[%clk 0:00:48]} 23. Nxe4 {[%clk 0:00:20]}  Nxe4 {[%clk 0:00:47]} 24. Bxe4 {[%clk 0:00:19]}  Nxd5 {[%clk 0:00:46]} 25. Bd4 {[%clk 0:00:04]}  Rhe8 {[%clk 0:00:33]} 26. Qd3 {[%clk 0:00:04]}  Kb8 {[%clk 0:00:15]} 27. Bf3 {[%clk 0:00:02]}  Nf4 {[%clk 0:00:09]} 28. Nxf4 {[%clk 0:00:02]}  Bxf4 {[%clk 0:00:09]} 29. Bxb7 {[%clk 0:00:01]}  Bh2+ {[%clk 0:00:08]} 30. Kh1 {[%clk 0:00:01]}  Qxb7+ {[%clk 0:00:07]} 31. Kxh2 {[%clk 0:00:00]}  Qc7+ {[%clk 0:00:07]} 0-1


[Site "https://www.chess.com"]

[Event "Titled Tuesday Blitz August 15 Early 2023"]
[White "Marn, Jan"]
[Black "Starozhilov, Leonid"]
[WhiteFideId "14619245"]
[BlackFideId "14106752"]
[WhiteElo "2491"]
[BlackElo "2685"]
[Result "1-0"]
[Round "8"]
[TimeControl "180+1"]
[Date "2023.08.15"]
[WhiteClock "0:00:28"]
[BlackClock "0:00:00"]
[Board "88"]

1. Nf3 {[%clk 0:03:00]}  Nf6 {[%clk 0:02:56]} 2. g3 {[%clk 0:03:00]}  g6 {[%clk 0:02:56]} 3. b4 {[%clk 0:02:59]}  Bg7 {[%clk 0:02:57]} 4. Bb2 {[%clk 0:02:59]}  O-O {[%clk 0:02:58]} 5. Bg2 {[%clk 0:02:59]}  c6 {[%clk 0:02:56]} 6. O-O {[%clk 0:02:59]}  d5 {[%clk 0:02:57]} 7. d3 {[%clk 0:02:59]}  Bg4 {[%clk 0:02:48]} 8. Ne5 {[%clk 0:02:58]}  Nbd7 {[%clk 0:02:46]} 9. Nxg4 {[%clk 0:02:58]}  Nxg4 {[%clk 0:02:46]} 10. Bxg7 {[%clk 0:02:59]}  Kxg7 {[%clk 0:02:46]} 11. c4 {[%clk 0:02:58]}  Ngf6 {[%clk 0:02:43]} 12. Nc3 {[%clk 0:02:57]}  e6 {[%clk 0:02:43]} 13. Qb3 {[%clk 0:02:57]}  a6 {[%clk 0:02:37]} 14. a4 {[%clk 0:02:57]}  Qe7 {[%clk 0:02:33]} 15. b5 {[%clk 0:02:53]}  axb5 {[%clk 0:02:33]} 16. axb5 {[%clk 0:02:53]}  Qc5 {[%clk 0:02:31]} 17. Na4 {[%clk 0:02:30]}  Qa7 {[%clk 0:02:24]} 18. b6 {[%clk 0:02:13]}  Qa5 {[%clk 0:02:22]} 19. Rfb1 {[%clk 0:02:07]}  Nc5 {[%clk 0:02:16]} 20. Nxc5 {[%clk 0:02:06]}  Qxc5 {[%clk 0:02:17]} 21. cxd5 {[%clk 0:01:57]}  exd5 {[%clk 0:02:15]} 22. Qb2 {[%clk 0:01:54]}  Rfe8 {[%clk 0:01:37]} 23. e3 {[%clk 0:01:54]}  Rxa1 {[%clk 0:01:23]} 24. Rxa1 {[%clk 0:01:53]}  d4 {[%clk 0:01:24]} 25. Qxd4 {[%clk 0:01:33]}  Qxd4 {[%clk 0:01:23]} 26. exd4 {[%clk 0:01:34]}  Rd8 {[%clk 0:01:02]} 27. Ra7 {[%clk 0:01:30]}  Rb8 {[%clk 0:00:52]} 28. Kf1 {[%clk 0:01:20]}  Kf8 {[%clk 0:00:46]} 29. Ke2 {[%clk 0:01:16]}  Nd5 {[%clk 0:00:32]} 30. Bxd5 {[%clk 0:01:07]}  cxd5 {[%clk 0:00:33]} 31. Ke3 {[%clk 0:01:03]}  Ke7 {[%clk 0:00:32]} 32. Kf4 {[%clk 0:01:03]}  f6 {[%clk 0:00:29]} 33. g4 {[%clk 0:00:58]}  h6 {[%clk 0:00:26]} 34. h4 {[%clk 0:00:59]}  Ke6 {[%clk 0:00:26]} 35. g5 {[%clk 0:00:57]}  fxg5+ {[%clk 0:00:26]} 36. hxg5 {[%clk 0:00:58]}  h5 {[%clk 0:00:25]} 37. Kg3 {[%clk 0:00:37]}  Kd6 {[%clk 0:00:17]} 38. Ra5 {[%clk 0:00:32]}  Rf8 {[%clk 0:00:13]} 39. Rc5 {[%clk 0:00:31]}  Rf5 {[%clk 0:00:11]} 40. f4 {[%clk 0:00:30]}  h4+ {[%clk 0:00:11]} 41. Kg4 {[%clk 0:00:30]}  Rf7 {[%clk 0:00:08]} 42. Rc2 {[%clk 0:00:30]}  h3 {[%clk 0:00:06]} 43. Rh2 {[%clk 0:00:30]}  Kc6 {[%clk 0:00:06]} 44. Rxh3 {[%clk 0:00:30]}  Kxb6 {[%clk 0:00:06]} 45. Rh6 {[%clk 0:00:30]}  Ka5 {[%clk 0:00:06]} 46. Rxg6 {[%clk 0:00:30]}  b5 {[%clk 0:00:06]} 47. Rf6 {[%clk 0:00:28]}  Rb7 {[%clk 0:00:07]} 48. g6 {[%clk 0:00:28]}  b4 {[%clk 0:00:08]} 49. Rf7 {[%clk 0:00:29]}  Rb8 {[%clk 0:00:08]} 50. g7 {[%clk 0:00:28]}  b3 {[%clk 0:00:00]} 51. Rf8 {[%clk 0:00:28]} 1-0


[Site "https://www.chess.com"]

[Event "Titled Tuesday Blitz August 15 Early 2023"]
[White "Maltsevskaya, Aleksandra"]
[Black "Liu, Casper"]
[WhiteFideId "24174041"]
[BlackFideId "1454153"]
[WhiteElo "2667"]
[BlackElo "2464"]
[Result "1-0"]
[Round "8"]
[TimeControl "180+1"]
[Date "2023.08.15"]
[WhiteClock "0:01:45"]
[BlackClock "0:01:18"]
[Board "90"]

1. Nf3 {[%clk 0:02:59]}  d6 {[%clk 0:02:59]} 2. g3 {[%clk 0:03:00]}  g6 {[%clk 0:03:00]} 3. Bg2 {[%clk 0:02:55]}  Bd7 {[%clk 0:03:00]} 4. O-O {[%clk 0:02:56]}  Qc8 {[%clk 0:03:01]} 5. e4 {[%clk 0:02:55]}  Bh3 {[%clk 0:03:02]} 6. d4 {[%clk 0:02:54]}  h5 {[%clk 0:03:01]} 7. e5 {[%clk 0:02:53]}  h4 {[%clk 0:03:00]} 8. Nc3 {[%clk 0:02:52]}  hxg3 {[%clk 0:03:00]} 9. fxg3 {[%clk 0:02:52]}  Bxg2 {[%clk 0:03:01]} 10. Kxg2 {[%clk 0:02:53]}  Qh3+ {[%clk 0:03:01]} 11. Kg1 {[%clk 0:02:53]}  Nc6 {[%clk 0:03:02]} 12. exd6 {[%clk 0:02:52]}  O-O-O {[%clk 0:03:00]} 13. dxc7 {[%clk 0:02:51]}  Rxd4 {[%clk 0:03:00]} 14. Qe2 {[%clk 0:02:50]}  Rg4 {[%clk 0:02:57]} 15. Bf4 {[%clk 0:02:39]}  e5 {[%clk 0:02:20]} 16. Rad1 {[%clk 0:02:31]}  Bc5+ {[%clk 0:02:15]} 17. Kh1 {[%clk 0:02:31]}  Nf6 {[%clk 0:01:39]} 18. Bxe5 {[%clk 0:02:19]}  Nxe5 {[%clk 0:01:35]} 19. Qxe5 {[%clk 0:02:10]}  Rxg3 {[%clk 0:01:34]} 20. Rd8+ {[%clk 0:01:46]}  Rxd8 {[%clk 0:01:32]} 21. cxd8=Q+ {[%clk 0:01:47]}  Kxd8 {[%clk 0:01:32]} 22. Rd1+ {[%clk 0:01:47]}  Kc8 {[%clk 0:01:23]} 23. Qxc5+ {[%clk 0:01:46]}  Kb8 {[%clk 0:01:18]} 24. Rd8+ {[%clk 0:01:45]} 1-0


[Site "https://www.chess.com"]

[Event "Titled Tuesday Blitz August 15 Early 2023"]
[White "Delorme, Axel"]
[Black "Haug, Havard"]
[WhiteFideId "632023"]
[BlackFideId "1547887"]
[WhiteElo "2482"]
[BlackElo "2655"]
[Result "1/2-1/2"]
[Round "8"]
[TimeControl "180+1"]
[Date "2023.08.15"]
[WhiteClock "0:00:08"]
[BlackClock "0:00:09"]
[Board "91"]

1. e4 {[%clk 0:03:00]}  c6 {[%clk 0:02:57]} 2. d4 {[%clk 0:03:00]}  d5 {[%clk 0:02:57]} 3. Nc3 {[%clk 0:03:01]}  dxe4 {[%clk 0:02:58]} 4. Nxe4 {[%clk 0:03:02]}  Nf6 {[%clk 0:02:58]} 5. Nxf6+ {[%clk 0:03:02]}  exf6 {[%clk 0:02:59]} 6. Bc4 {[%clk 0:03:03]}  Bd6 {[%clk 0:02:59]} 7. Qe2+ {[%clk 0:03:03]}  Be7 {[%clk 0:02:58]} 8. Nf3 {[%clk 0:03:03]}  O-O {[%clk 0:02:58]} 9. O-O {[%clk 0:03:04]}  Re8 {[%clk 0:02:58]} 10. Re1 {[%clk 0:03:03]}  Nd7 {[%clk 0:02:58]} 11. Bf4 {[%clk 0:02:49]}  Nf8 {[%clk 0:02:55]} 12. h3 {[%clk 0:02:40]}  Be6 {[%clk 0:02:51]} 13. Rad1 {[%clk 0:02:36]}  Qd7 {[%clk 0:02:48]} 14. c3 {[%clk 0:02:31]}  Rad8 {[%clk 0:02:45]} 15. Bg3 {[%clk 0:02:18]}  Bd6 {[%clk 0:02:38]} 16. Bxd6 {[%clk 0:02:10]}  Qxd6 {[%clk 0:02:32]} 17. Qf1 {[%clk 0:02:03]}  Ng6 {[%clk 0:02:28]} 18. g3 {[%clk 0:01:50]}  Bd5 {[%clk 0:02:25]} 19. Bxd5 {[%clk 0:01:47]}  Qxd5 {[%clk 0:02:26]} 20. Kg2 {[%clk 0:01:40]}  Qxa2 {[%clk 0:02:21]} 21. Qd3 {[%clk 0:01:26]}  b5 {[%clk 0:01:55]} 22. Rxe8+ {[%clk 0:01:22]}  Rxe8 {[%clk 0:01:56]} 23. h4 {[%clk 0:01:17]}  Qxb2 {[%clk 0:01:46]} 24. h5 {[%clk 0:01:15]}  Nf8 {[%clk 0:01:43]} 25. c4 {[%clk 0:01:08]}  bxc4 {[%clk 0:01:40]} 26. Qxc4 {[%clk 0:01:09]}  Re2 {[%clk 0:01:38]} 27. Rf1 {[%clk 0:01:05]}  Qc2 {[%clk 0:01:35]} 28. Qa6 {[%clk 0:01:03]}  Qf5 {[%clk 0:01:17]} 29. Qxe2 {[%clk 0:00:56]}  Qxh5 {[%clk 0:01:05]} 30. Qe8 {[%clk 0:00:55]}  g6 {[%clk 0:00:52]} 31. Qxc6 {[%clk 0:00:50]}  Ne6 {[%clk 0:00:45]} 32. Qe4 {[%clk 0:00:40]}  f5 {[%clk 0:00:40]} 33. Qh4 {[%clk 0:00:39]}  Qxh4 {[%clk 0:00:35]} 34. gxh4 {[%clk 0:00:38]}  Nf4+ {[%clk 0:00:35]} 35. Kh2 {[%clk 0:00:37]}  Kf8 {[%clk 0:00:31]} 36. Ra1 {[%clk 0:00:37]}  Ke7 {[%clk 0:00:29]} 37. Rxa7+ {[%clk 0:00:37]}  Ke6 {[%clk 0:00:29]} 38. Ng5+ {[%clk 0:00:36]}  Kd5 {[%clk 0:00:28]} 39. Rxf7 {[%clk 0:00:33]}  h6 {[%clk 0:00:27]} 40. Nf3 {[%clk 0:00:33]}  Ke4 {[%clk 0:00:27]} 41. Ne5 {[%clk 0:00:29]}  Kxd4 {[%clk 0:00:26]} 42. Nf3+ {[%clk 0:00:19]}  Ke4 {[%clk 0:00:25]} 43. Ng1 {[%clk 0:00:19]}  g5 {[%clk 0:00:22]} 44. hxg5 {[%clk 0:00:19]}  hxg5 {[%clk 0:00:23]} 45. Re7+ {[%clk 0:00:18]}  Kd5 {[%clk 0:00:21]} 46. Kg3 {[%clk 0:00:16]}  Nh5+ {[%clk 0:00:21]} 47. Kh2 {[%clk 0:00:16]}  Nf4 {[%clk 0:00:18]} 48. Nf3 {[%clk 0:00:17]}  g4 {[%clk 0:00:18]} 49. Re5+ {[%clk 0:00:17]}  Kd6 {[%clk 0:00:17]} 50. Rxf5 {[%clk 0:00:18]}  Nd3 {[%clk 0:00:14]} 51. Ng1 {[%clk 0:00:13]}  Ke6 {[%clk 0:00:13]} 52. Rf8 {[%clk 0:00:12]}  Ke7 {[%clk 0:00:13]} 53. Rg8 {[%clk 0:00:12]}  Nxf2 {[%clk 0:00:12]} 54. Kg2 {[%clk 0:00:12]}  Nd1 {[%clk 0:00:11]} 55. Kg3 {[%clk 0:00:10]}  Ne3 {[%clk 0:00:10]} 56. Kf4 {[%clk 0:00:09]}  Nd5+ {[%clk 0:00:10]} 57. Kg3 {[%clk 0:00:08]}  Nf6 {[%clk 0:00:10]} 58. Rg5 {[%clk 0:00:08]}  Ne4+ {[%clk 0:00:08]} 59. Kxg4 {[%clk 0:00:08]}  Nxg5 {[%clk 0:00:09]} 1/2-1/2


[Site "https://www.chess.com"]

[Event "Titled Tuesday Blitz August 15 Early 2023"]
[White "Aaditya Dhingra"]
[Black "Spichkin, Alexander"]
[WhiteFideId "25678191"]
[BlackFideId "4144074"]
[WhiteElo "2646"]
[BlackElo "2464"]
[Result "1-0"]
[Round "8"]
[TimeControl "180+1"]
[Date "2023.08.15"]
[WhiteClock "0:01:03"]
[BlackClock "0:00:34"]
[Board "92"]

1. e4 {[%clk 0:03:00]}  e5 {[%clk 0:01:55]} 2. Nf3 {[%clk 0:02:59]}  d5 {[%clk 0:01:55]} 3. exd5 {[%clk 0:02:35]}  e4 {[%clk 0:01:55]} 4. Qe2 {[%clk 0:02:32]}  Nf6 {[%clk 0:01:54]} 5. Nc3 {[%clk 0:02:25]}  Be7 {[%clk 0:01:52]} 6. Nxe4 {[%clk 0:02:13]}  O-O {[%clk 0:01:52]} 7. Nxf6+ {[%clk 0:02:06]}  Bxf6 {[%clk 0:01:51]} 8. d4 {[%clk 0:02:02]}  Qxd5 {[%clk 0:01:51]} 9. Be3 {[%clk 0:02:00]}  Nc6 {[%clk 0:01:51]} 10. c3 {[%clk 0:01:59]}  Bg4 {[%clk 0:01:48]} 11. h3 {[%clk 0:01:56]}  Bh5 {[%clk 0:01:40]} 12. g4 {[%clk 0:01:48]}  Bg6 {[%clk 0:01:40]} 13. Bg2 {[%clk 0:01:48]}  Be4 {[%clk 0:01:36]} 14. O-O {[%clk 0:01:47]}  Rfe8 {[%clk 0:01:36]} 15. Rfd1 {[%clk 0:01:44]}  Ne7 {[%clk 0:01:32]} 16. c4 {[%clk 0:01:32]}  Qd8 {[%clk 0:01:30]} 17. Ne5 {[%clk 0:01:31]}  Bxg2 {[%clk 0:01:28]} 18. Kxg2 {[%clk 0:01:31]}  Ng6 {[%clk 0:01:26]} 19. Nxg6 {[%clk 0:01:29]}  hxg6 {[%clk 0:01:26]} 20. Qf3 {[%clk 0:01:29]}  c6 {[%clk 0:01:25]} 21. Rd2 {[%clk 0:01:27]}  Qa5 {[%clk 0:01:25]} 22. b3 {[%clk 0:01:24]}  Re6 {[%clk 0:01:23]} 23. Rad1 {[%clk 0:01:22]}  Rae8 {[%clk 0:01:23]} 24. d5 {[%clk 0:01:21]}  cxd5 {[%clk 0:01:22]} 25. cxd5 {[%clk 0:01:21]}  Rd6 {[%clk 0:01:23]} 26. Bf4 {[%clk 0:01:21]}  Rd7 {[%clk 0:01:23]} 27. d6 {[%clk 0:01:20]}  g5 {[%clk 0:01:23]} 28. Rd5 {[%clk 0:01:13]}  Qxa2 {[%clk 0:01:04]} 29. Bxg5 {[%clk 0:01:13]}  Be5 {[%clk 0:01:02]} 30. Be7 {[%clk 0:01:09]}  Rc8 {[%clk 0:00:51]} 31. Rxe5 {[%clk 0:01:08]}  f6 {[%clk 0:00:39]} 32. Qd5+ {[%clk 0:01:05]}  Kh7 {[%clk 0:00:36]} 33. Rh5+ {[%clk 0:01:05]}  Kg6 {[%clk 0:00:36]} 34. Qf5+ {[%clk 0:01:06]}  Kf7 {[%clk 0:00:36]} 35. Qxd7 {[%clk 0:01:05]}  Rc2 {[%clk 0:00:36]} 36. Bxf6+ {[%clk 0:01:03]}  Kxf6 {[%clk 0:00:34]} 37. Qf5# {[%clk 0:01:03]} 1-0


[Site "https://www.chess.com"]

[Event "Titled Tuesday Blitz August 15 Early 2023"]
[White "Mendez Fortes, Eduardo Jesus"]
[Black "Dong Khanh Linh"]
[WhiteFideId "3502376"]
[BlackFideId "12403040"]
[WhiteElo "2603"]
[BlackElo "2457"]
[Result "1-0"]
[Round "8"]
[TimeControl "180+1"]
[Date "2023.08.15"]
[WhiteClock "0:01:04"]
[BlackClock "0:00:00"]
[Board "94"]

1. e4 {[%clk 0:03:00]}  e6 {[%clk 0:02:59]} 2. d4 {[%clk 0:02:58]}  d5 {[%clk 0:03:00]} 3. Nd2 {[%clk 0:02:55]}  c5 {[%clk 0:02:59]} 4. exd5 {[%clk 0:02:51]}  Qxd5 {[%clk 0:03:00]} 5. Ngf3 {[%clk 0:02:49]}  cxd4 {[%clk 0:03:00]} 6. Bc4 {[%clk 0:02:48]}  Qd6 {[%clk 0:03:01]} 7. O-O {[%clk 0:02:48]}  Nf6 {[%clk 0:03:01]} 8. Nb3 {[%clk 0:02:48]}  Nc6 {[%clk 0:03:02]} 9. Nbxd4 {[%clk 0:02:48]}  Nxd4 {[%clk 0:03:03]} 10. Nxd4 {[%clk 0:02:48]}  a6 {[%clk 0:03:03]} 11. Re1 {[%clk 0:02:47]}  Be7 {[%clk 0:02:57]} 12. c3 {[%clk 0:02:45]}  O-O {[%clk 0:02:55]} 13. Qf3 {[%clk 0:02:44]}  h6 {[%clk 0:02:55]} 14. Bf4 {[%clk 0:02:42]}  Qc5 {[%clk 0:02:55]} 15. Bb3 {[%clk 0:02:40]}  Rd8 {[%clk 0:02:26]} 16. Rad1 {[%clk 0:02:29]}  Qh5 {[%clk 0:02:05]} 17. Qg3 {[%clk 0:02:20]}  b5 {[%clk 0:01:49]} 18. Rd2 {[%clk 0:02:07]}  Bb7 {[%clk 0:01:45]} 19. Bd1 {[%clk 0:02:03]}  Qc5 {[%clk 0:01:07]} 20. Bxh6 {[%clk 0:01:58]}  g6 {[%clk 0:01:05]} 21. Nxe6 {[%clk 0:01:54]}  Qb6 {[%clk 0:00:10]} 22. Nxd8 {[%clk 0:01:52]}  Bxd8 {[%clk 0:00:07]} 23. Bb3 {[%clk 0:01:49]}  Kh7 {[%clk 0:00:05]} 24. Bxf7 {[%clk 0:01:46]}  Nh5 {[%clk 0:00:05]} 25. Qe3 {[%clk 0:01:38]}  Qf6 {[%clk 0:00:05]} 26. Rd7 {[%clk 0:01:33]}  Bc6 {[%clk 0:00:05]} 27. Bg8+ {[%clk 0:01:30]}  Kh8 {[%clk 0:00:02]} 28. Bg7+ {[%clk 0:01:23]}  Nxg7 {[%clk 0:00:02]} 29. Rf7 {[%clk 0:01:06]}  Qxf7 {[%clk 0:00:01]} 30. Bxf7 {[%clk 0:01:06]}  Nf5 {[%clk 0:00:00]} 31. Qe6 {[%clk 0:01:04]} 1-0


[Site "https://www.chess.com"]

[Event "Titled Tuesday Blitz August 15 Early 2023"]
[White "Deng, Henry"]
[Black "Gheorghiu, Calin"]
[WhiteFideId "30965454"]
[BlackFideId "1200305"]
[WhiteElo "2566"]
[BlackElo "2423"]
[Result "1-0"]
[Round "8"]
[TimeControl "180+1"]
[Date "2023.08.15"]
[WhiteClock "0:01:07"]
[BlackClock "0:00:17"]
[Board "97"]

1. e4 {[%clk 0:03:00]}  c6 {[%clk 0:02:43]} 2. d4 {[%clk 0:02:59]}  d5 {[%clk 0:02:38]} 3. Nd2 {[%clk 0:02:57]}  dxe4 {[%clk 0:02:38]} 4. Nxe4 {[%clk 0:02:58]}  Nf6 {[%clk 0:02:37]} 5. Nxf6+ {[%clk 0:02:58]}  exf6 {[%clk 0:02:37]} 6. c3 {[%clk 0:02:58]}  Bd6 {[%clk 0:02:37]} 7. Bd3 {[%clk 0:02:57]}  O-O {[%clk 0:02:37]} 8. Qc2 {[%clk 0:02:58]}  h6 {[%clk 0:02:37]} 9. Ne2 {[%clk 0:02:56]}  Qc7 {[%clk 0:02:35]} 10. h3 {[%clk 0:02:55]}  b6 {[%clk 0:02:31]} 11. O-O {[%clk 0:02:52]}  Bb7 {[%clk 0:02:30]} 12. Be3 {[%clk 0:02:27]}  c5 {[%clk 0:02:25]} 13. Rad1 {[%clk 0:02:26]}  cxd4 {[%clk 0:01:43]} 14. Nxd4 {[%clk 0:02:19]}  a6 {[%clk 0:01:43]} 15. Nf5 {[%clk 0:01:56]}  Bh2+ {[%clk 0:01:41]} 16. Kh1 {[%clk 0:01:54]}  Bf4 {[%clk 0:01:40]} 17. Qd2 {[%clk 0:01:47]}  Bxe3 {[%clk 0:01:38]} 18. Qxe3 {[%clk 0:01:48]}  Nd7 {[%clk 0:01:36]} 19. Rfe1 {[%clk 0:01:40]}  Ne5 {[%clk 0:01:35]} 20. Qg3 {[%clk 0:01:40]}  g6 {[%clk 0:01:01]} 21. Nxh6+ {[%clk 0:01:38]}  Kg7 {[%clk 0:01:02]} 22. Ng4 {[%clk 0:01:36]}  Rae8 {[%clk 0:00:56]} 23. Qf4 {[%clk 0:01:25]}  Re6 {[%clk 0:00:35]} 24. f3 {[%clk 0:01:15]}  Rh8 {[%clk 0:00:30]} 25. Nxf6 {[%clk 0:01:07]}  Rxf6 {[%clk 0:00:25]} 26. Qxe5 {[%clk 0:01:07]}  Qc6 {[%clk 0:00:21]} 27. Be4 {[%clk 0:01:06]}  Qc8 {[%clk 0:00:20]} 28. Bxb7 {[%clk 0:01:06]}  Qxb7 {[%clk 0:00:17]} 29. Rd6 {[%clk 0:01:07]} 1-0


[Site "https://www.chess.com"]